Cogmind - Beta 10.2 @@@ ROGUE MODE // 2021.02.11 @ 10:15:17 Player: CrossedViper Result: Self-destructed Performance ------------- Evolutions (2) 1000 Regions Visited (5) 1000 Robots Destroyed (55) 275 Value Destroyed (1349) 1349 Prototype IDs (29) 580 Alien Tech Used (0) 0 Bonus (391) 391 TOTAL SCORE: 4595 Bonus ------- High Alert Combat Kills 66 Follower Combat Kills 25 Aligned with FarCom 300 Cogmind --------- Core Integrity 429/550 Matter 14/300 Energy 310/310 System Corruption 4% Temperature Cool (0) Movement Treading (280) Ox6 Location -8/Materials Parts ------- > --- POWER (1) -------- Reinforced Fission Core > --- PROPULSION (3) --- Light Treads > --- UTILITY (5) ------ Humpback Hardened Heavy Armor Plating > --- WEAPON (2) ------- (None) > --- INVENTORY (24) --- Cold Fusion Reactor Light Neutrino Core Light Treads Advanced Myomer Leg Experimental Heat Sink Coolant Injector High-capacity Storage Unit High-capacity Storage Unit High-capacity Storage Unit Large Matter Pod (20) Gravity Neutralizing Apparatus Advanced Terrain Scanner Experimental Targeting Computer Improved Armor Integrity Analyzer Advanced Weapon Cycler System Purifier AWS/Thermal Heavy Particle Cannon Assault Rifle 8R-AWN's Boregun Mini Grenade Launcher Improved Grenade Launcher Makeshift Sword Peak State ------------ > --- POWER ------------ Reinforced Fission Core > --- PROPULSION ------- Light Treads Light Treads Light Treads > --- UTILITY ---------- Humpback Advanced Core Analyzer Hardened Heavy Armor Plating > --- WEAPON ----------- Heavy Particle Cannon Missile Launcher > --- INVENTORY -------- Cold Fusion Reactor Light Neutrino Core Advanced Myomer Leg Experimental Heat Sink Coolant Injector High-capacity Storage Unit High-capacity Storage Unit High-capacity Storage Unit Large Matter Pod Gravity Neutralizing Apparatus Advanced Terrain Scanner Experimental Targeting Computer Improved Armor Integrity Analyzer Advanced Weapon Cycler System Purifier AWS/Thermal Assault Rifle Assault Rifle 8R-AWN's Boregun Mini Grenade Launcher Improved Grenade Launcher Makeshift Sword [Rating: 44] Favorites ----------- Power Ion Engine Engine Ion Engine Power Core Reinforced Fission Core Reactor Cold Fusion Reactor Propulsion Light Treads Treads Light Treads Leg Aluminum Leg Utility High-capacity Storage Unit Device Experimental Heat Sink Storage High-capacity Storage Unit Processor Advanced Core Analyzer Protection Light Armor Plating Weapon Assault Rifle Energy Gun Small Laser Energy Cannon Heavy Particle Cannon Ballistic Gun Assault Rifle Launcher Missile Launcher Slashing Weapon Makeshift Sword Build | -11 -10 -10 -10 -9 -8 ------- Run | Scr Mat Min Exi Min Mat Slots Evolved 4 | . . . . . 4 Power . | . . . . . . Propulsion 1 | . . . . . 1 Utility 3 | . . . . . 3 Weapon . | . . . . . . Parts Attached 49 | . 5 3 27 1 13 Power 6 | . . 2 3 1 . Engine 3 | . . 2 1 . . Core 2 | . . . 1 1 . Reactor 1 | . . . 1 . . Propulsion 9 | . 2 1 3 . 3 Treads 9 | . 2 1 3 . 3 Leg . | . . . . . . Wheel . | . . . . . . Hover . | . . . . . . Flight . | . . . . . . Utility 17 | . 2 . 11 . 4 Device 4 | . . . 3 . 1 Storage 6 | . 2 . 4 . . Processor 1 | . . . . . 1 Hackware . | . . . . . . Protection 6 | . . . 4 . 2 Artifact . | . . . . . . Weapon 17 | . 1 . 10 . 6 Energy Gun 4 | . 1 . 3 . . Energy Cannon 1 | . . . . . 1 Ballistic Gun 8 | . . . 6 . 2 Ballistic Cannon . | . . . . . . Launcher 3 | . . . . . 3 Special Weapon . | . . . . . . Impact Weapon . | . . . . . . Slashing Weapon 1 | . . . 1 . . Piercing Weapon . | . . . . . . Special Melee Weapon . | . . . . . . Unidentified Prototypes 6 | . . . 6 . . Parts Lost 12 | . 1 . 6 . 5 Power . | . . . . . . Propulsion 5 | . . . 2 . 3 Utility 4 | . . . 3 . 1 Weapon 3 | . 1 . 1 . 1 Highest Loss Streak 6 | . 1 . 6 . 3 Average Slot Usage (%) 90 | . 100 100 88 85 81 Engine 10 | . 14 14 13 1 . Core 2 | . . . . 12 9 Treads 27 | . 27 28 27 28 25 Storage 17 | . 28 28 14 14 9 Processor 1 | . . . . . 9 Protection 3 | . . . 5 . 9 Energy Gun 6 | . 14 14 6 . . Ballistic Gun 17 | . 14 14 19 28 11 Naked Turns . | . . . . . . Heaviest Build 129 | 10 70 71 93 105 129 Greatest Support 60 | 20 40 40 40 40 60 Greatest Overweight (x) 6 | . 2 1 4 2 6 Average Overweight (x) 1 | . . 1 . 2 1 Largest Inventory Capacity 24 | . 20 20 24 24 24 Average Capacity 18 | . 19 20 15 24 24 Most Carried 24 | . 18 20 24 24 24 Average Carried 15 | . 11 18 11 23 22 Final Capacity 24 | 6 20 20 24 24 24 Final Carried 24 | 6 17 20 24 23 24 Class Distribution -------------------- 84% | Hauler-Mutant 15% | Mutant Dominant Class ---------------- Hauler-Mutant | -10/Materials Hauler-Mutant | -10/Mines Hauler-Mutant | -10/Exiles Hauler-Mutant | -9/Mines Hauler-Mutant | -8/Materials Resources | -11 -10 -10 -10 -9 -8 ----------- Run | Scr Mat Min Exi Min Mat Matter Collected 1190 | 200 56 42 553 52 287 Remotely . | . . . . . . Salvage Created 1675 | . 199 70 407 65 934 Parts 126 | . 15 6 52 7 46 Haulers Intercepted 2 | . 1 . . . 1 Recyclers Shooed . | . . . . . . Parts Field Recycled . | . . . . . . Retrieved Matter . | . . . . . . Parts Self-Destructed . | . . . . . . Prevented . | . . . . . . Kills | -11 -10 -10 -10 -9 -8 ------- Run | Scr Mat Min Exi Min Mat Combat Hostiles Destroyed 32 | . 3 3 2 4 20 Guns 20 | . 3 3 2 4 8 Cannons 2 | . . . . . 2 AOE 10 | . . . . . 10 Classes Destroyed 13 | . 4 1 3 . 5 Worker 5 | . . . . . 5 Builder 2 | . 1 . . . 1 Hauler 2 | . 1 . . . 1 Recycler 1 | . . . . . 1 Operator 2 | . . . . . 2 Turret 1 | . . . 1 . . Watcher 2 | . 1 . . . 1 Swarmer 6 | . . 2 . 4 . Grunt 18 | . 3 1 . . 14 Duelist 1 | . . . . . 1 Sentry 5 | . . . . . 5 Zionite 7 | . . . 7 . . Assembled 1 | . . . 1 . . Best Kill Streak 12 | . 3 2 5 4 12 Combat Bots Only 7 | . 3 2 1 4 7 Max Kills in Single Turn 3 | . 1 1 1 1 3 Gunslinging . | . . . . . . Exploded 1 | . . . . . 1 Melee . | . . . . . . Uniques/NPCs Destroyed 4 | . . . 4 . . 8R-AWN (-10/Exiles) EX-BIN (-10/Exiles) EX-HEX (-10/Exiles) EX-DEC (-10/Exiles) Combat | -11 -10 -10 -10 -9 -8 -------- Run | Scr Mat Min Exi Min Mat Damage Taken 2797 | . 222 22 744 143 1666 Core 266 | . 10 7 100 28 121 Absorbed by Shields . | . . . . . . Core Remaining (%) 71 | 100 . . . 42 . Volleys Fired 166 | . 19 4 62 9 72 Largest 2 | . 2 2 2 2 2 Hottest 95 | . 70 60 50 40 95 Shots Fired 285 | . 38 8 109 18 112 Gun 232 | . 38 8 109 18 59 Cannon 33 | . . . . . 33 Launcher 20 | . . . . . 20 Special . | . . . . . . Kinetic 178 | . 19 4 78 18 59 Thermal 87 | . 19 4 31 . 33 Explosive 20 | . . . . . 20 Electromagnetic . | . . . . . . Robot Hit Streak 18 | . 10 10 18 4 11 Robot Miss Streak 3 | . 3 . 2 2 2 Penetration Max . | . . . . . . Secondary Targets 2 | . . . 2 . . Max Gunslinging Chain 1 | . . . 1 . . Autonomous 31 | . . . 31 . . Shots Hit Robots 195 | . 25 6 86 8 70 Core Hits 121 | . 12 4 28 5 72 Critical Hits 7 | . . . 6 . 1 Critical Kills 2 | . . . 2 . . Critical Parts Destroyed 4 | . . . 4 . . Melee Attacks 19 | . . . 19 . . Impact . | . . . . . . Slashing 19 | . . . 19 . . Piercing . | . . . . . . Sneak Attacks . | . . . . . . Combat Hostiles . | . . . . . . Follow-up Attacks . | . . . . . . Damage Inflicted 5907 | . 271 125 1923 119 3469 Guns 2300 | . 271 69 1410 91 459 Cannons 600 | . . . . . 600 Explosions 2405 | . . . . . 2405 Melee 502 | . . . 502 . . Ramming 100 | . . 56 11 28 5 Kinetic 1245 | . 103 19 573 91 459 Thermal 1655 | . 168 50 837 . 600 Explosive 2405 | . . . . . 2405 Electromagnetic . | . . . . . . Impact . | . . . . . . Slashing 502 | . . . 502 . . Piercing . | . . . . . . Highest Corruption . | . . . . . . Average Corruption . | . . . . . . Corruption Purged . | . . . . . . Overload Shots . | . . . . . . Overflow Damage 207 | . . . . . 207 Projectiles 4 | . . . . . 4 Explosions 203 | . . . . . 203 Melee . | . . . . . . Knockbacks 1 | . . 1 . . . Impact 1 | . . 1 . . . Kinetic . | . . . . . . Secondary . | . . . . . . Self-Inflicted Damage 221 | . . . . . 221 Shots 5 | . . . . . 5 Rammed 14 | . . 3 8 2 1 Targets Rammed 14 | . . 3 8 2 1 Kicked . | . . . . . . Crushed . | . . . . . . Highest Temperature 348 | . 158 20 . . 348 Average Temperature 103 | . 67 13 . . 141 Received Heat Transfer 852 | . 96 . . . 756 Effects 1 | . . . . . 1 Energy Bleed 1 | . . . . . 1 Siege Activations . | . . . . . . Robots Corrupted . | . . . . . . Combat Hostiles . | . . . . . . Parts Fried . | . . . . . . Impact Corruptions . | . . . . . . Robots Melted . | . . . . . . Combat Hostiles . | . . . . . . Parts Melted 4 | . . 1 . . 3 Heat Transferred 1786 | . 481 100 317 . 888 Parts Sabotaged . | . . . . . . Parts Stolen . | . . . . . . Parts Stripped . | . . . . . . Power Chain Reactions . | . . . . . . Missiles Intercepted . | . . . . . . Alert | -11 -10 -10 -10 -9 -8 ------- Run | Scr Mat Min Exi Min Mat Peak Influence 693 | . 148 65 . 90 693 Initial . | . . . . . . Average 65 | . 60 13 . 54 157 Maximum Alert Level 2 | . . . . . 2 Low Security (%) 93 | . 100 100 . 100 74 Level 1 2 | . . . . . 12 Level 2 3 | . . . . . 13 Level 3 . | . . . . . . Level 4 . | . . . . . . Level 5 . | . . . . . . High Security . | . . . . . . Max Security . | . . . . . . Squads Dispatched 9 | . 1 . . . 8 Investigation 1 | . . . . . 1 Extermination . | . . . . . . Reinforcement 4 | . 1 . . . 3 Assault . | . . . . . . Garrison 4 | . . . . . 4 Intercept . | . . . . . . Construction Impeded 1 | . . . . . 1 Haulers Reinforced . | . . . . . . Stealth | -11 -10 -10 -10 -9 -8 --------- Run | Scr Mat Min Exi Min Mat Distress Signals 3 | . . . . . 3 Communications Jammed . | . . . . . . Distress Signals . | . . . . . . Times Spotted 83 | . 7 5 23 4 44 Peak Tracking Total 7 | . 2 3 7 4 7 Tactical Retreats 15 | . . 1 11 . 3 Traps | -11 -10 -10 -10 -9 -8 ------- Run | Scr Mat Min Exi Min Mat Traps Triggered 1 | . 1 . . . . Indirectly . | . . . . . . Trap Hack Attempts . | . . . . . . Triggered . | . . . . . . Disarmed . | . . . . . . Reprogrammed . | . . . . . . Reused 1 | . . . 1 . . Traps Extracted . | . . . . . . Installed 4 | . . . 4 . . Triggered . | . . . . . . Machines | -11 -10 -10 -10 -9 -8 ---------- Run | Scr Mat Min Exi Min Mat Machines Disabled 15 | . . . 12 . 3 Max in Single Turn 2 | . . . 1 . 2 Machines Sabotaged . | . . . . . . Garrisons Compromised . | . . . . . . Overloaded Fab Kills . | . . . . . . Fab Network Shutdowns . | . . . . . . Hacking | -11 -10 -10 -10 -9 -8 --------- Run | Scr Mat Min Exi Min Mat Machines Accessed 6 | . 2 . 2 . 2 Terminals 3 | . 2 . . . 1 Fabricators . | . . . . . . Repair Stations 1 | . . . . . 1 Recycling Units . | . . . . . . Scanalyzers . | . . . . . . Garrison Access . | . . . . . . Total Hacks 15 | . 7 . 2 . 6 Successful 7 | . 3 . 2 . 2 Failed 8 | . 4 . . . 4 Catastrophic 2 | . 2 . . . . Database Lockouts . | . . . . . . Manual 12 | . 8 . 1 . 3 Terminals 10 | . 7 . . . 3 Fabricators . | . . . . . . Repair Stations 3 | . . . . . 3 Recycling Units . | . . . . . . Scanalyzers . | . . . . . . Garrison Access . | . . . . . . Terminal Hacks 5 | . 3 . 2 . . Record 1 | . . . 1 . . Robot Analysis 2 | . 2 . . . . Branch Access Points 1 | . 1 . . . . EX-Prototype ID Bank 1 | . . . 1 . . Fabricator Hacks . | . . . . . . Repair Station Hacks 2 | . . . . . 2 Scan Component 1 | . . . . . 1 Repair 1 | . . . . . 1 Recycling Unit Hacks . | . . . . . . Scanalyzer . | . . . . . . Garrison Access Hacks . | . . . . . . Unauthorized Hacks . | . . . . . . Terminals . | . . . . . . Fabricators . | . . . . . . Repair Stations . | . . . . . . Recycling Units . | . . . . . . Scanalyzers . | . . . . . . Garrison Access . | . . . . . . Data Cores Recovered . | . . . . . . Used . | . . . . . . Hacking Detections 3 | . 1 . . . 2 Full Trace Events 1 | . . . . . 1 Feedback Events . | . . . . . . Feedback Blocked . | . . . . . . Robot Schematics Acquired . | . . . . . . Robots Built . | . . . . . . Matter . | . . . . . . Time . | . . . . . . Total Robot Build Rating . | . . . . . . Part Schematics Acquired . | . . . . . . Parts Built . | . . . . . . Matter . | . . . . . . Time . | . . . . . . Total Part Build Rating . | . . . . . . Parts Repaired 1 | . . . . . 1 Time 89 | . . . . . 89 Parts Recycled . | . . . . . . Recycled Matter . | . . . . . . Retrieved Matter . | . . . . . . Retrieved Components . | . . . . . . Parts Scanalyzed . | . . . . . . Part Schematics Acquired . | . . . . . . Parts Damaged . | . . . . . . Bothacking | -11 -10 -10 -10 -9 -8 ------------ Run | Scr Mat Min Exi Min Mat Used RIF Installer . | . . . . . . Robots Hacked . | . . . . . . Non-combat . | . . . . . . Combat . | . . . . . . Robot Hacks Applied . | . . . . . . Relay Couplers Released . | . . . . . . Robots Rewired . | . . . . . . Allies Hacked . | . . . . . . Hacks Repelled . | . . . . . . Allies | -11 -10 -10 -10 -9 -8 -------- Run | Scr Mat Min Exi Min Mat Total Allies 5 | . . 3 . 2 . Largest Group 3 | . . 3 . 2 . Highest-Rated Group 45 | . . 40 . 45 . Highest-Rated Ally 31 | . . 16 . 31 . Total Orders . | . . . . . . Ally Attacks 15 | . . 9 2 4 . Total Damage 302 | . . 136 123 43 . Kills 2 | . . 1 . 1 . Allies Corrupted . | . . . . . . Allies Melted . | . . . . . . Turrets Deployed 1 | . . . 1 . . Intel | -11 -10 -10 -10 -9 -8 ------- Run | Scr Mat Min Exi Min Mat Robot Analysis Total 2 | . 2 . . . . Derelict Logs Recovered 1 | . . 1 . . . Drone Launches . | . . . . . . Drone Recoveries . | . . . . . . Exploration | -11 -10 -10 -10 -9 -8 ------------- Run | Scr Mat Min Exi Min Mat Turns Passed 4930 | . 427 995 2226 624 658 Spaces Moved 2226 | 1 193 525 1042 235 230 Core . | . . . . . . Treads 2219 | . 187 525 1042 235 230 Legs 7 | 1 6 . . . . Wheels . | . . . . . . Hover . | . . . . . . Flight . | . . . . . . Fastest Speed 120 | 120 120 180 160 200 180 Average Speed 182 | 120 178 180 179 200 189 Slowest Speed 280 | 120 180 180 240 200 280 Overloaded Moves . | . . . . . . Propulsion Burnouts . | . . . . . . Robots Hopped . | . . . . . . Cave-ins Triggered . | . . . . . . Exploration Rate (%) 48 | 2 41 84 88 53 23 Regions Visited 5 Branch Regions 3 Pre-discovered Areas 1 | . . . 1 . . Known Exits Taken 1 | . 1 . . . . Unknown Exits Taken 4 | 1 . 1 1 1 . Scrap Searched 1 | . . 1 . . . Spaces Dug 25 | . . . . . 25 Terrain Destroyed 138 | . . . 4 . 134 Melee . | . . . . . . Projectile 9 | . . . 4 . 5 AOE 129 | . . . . . 129 Terrain Rammed . | . . . . . . Walls Destroyed . | . . . . . . Machines Disabled . | . . . . . . Actions | -11 -10 -10 -10 -9 -8 --------- Run | Scr Mat Min Exi Min Mat Total 2815 | . 242 567 1299 370 337 Wait 199 | . 9 18 45 123 4 Move 2221 | . 192 524 1041 234 230 Hop . | . . . . . . Pick Up 96 | . 14 9 64 . 9 Fast Attach 17 | . 1 . 15 . 1 Attach 21 | . 3 . 11 1 6 Detach 2 | . . . . . 2 Swap 11 | . 1 3 1 . 6 Drop 45 | . 3 6 29 1 6 Fire 166 | . 19 4 62 9 72 Melee 19 | . . . 19 . . Ram . | . . . . . . Kick . | . . . . . . Crush 14 | . . 3 8 2 1 Escape Stasis . | . . . . . . Rewire . | . . . . . . Trap 4 | . . . 4 . . Miscellaneous . | . . . . . . Route ------- -11/Scrapyard -10/Materials (discovered 3 exits: [*Mat] / *Min x2) -10/Mines (discovered 2 exits: [*Mat] / *Exi) -10/Exiles -9/Mines -8/Materials History --------- Turn | Location | Event 1 | -11/Scrapyard | Discovered new exit (range 0) 1 | -11/Scrapyard | Entered Materials 185 | -10/Materials | Discovered new exit (range 3) 302 | -10/Materials | Build established: Hauler-Mutant 349 | -10/Materials | Identified exit to Mines 428 | -10/Materials | Entered Mines 443 | -10/Mines | Assisted by bots powering up and referring to "LRC-V3" 860 | -10/Mines | A weapon hastily lodged in a ceiling crevice suddenly fell to the ground 935 | -10/Mines | Found a hidden stash of uninstalled traps 1250 | -10/Mines | Learned Materials terminal intel 1272 | -10/Mines | Deemed a non-threat by the Exiles lab entrance 1273 | -10/Mines | Discovered new exit (range 5) 1295 | -10/Mines | Discovered new exit (range 14) 1423 | -10/Mines | Entered Exiles 1468 | -10/Exiles | Met 8R-AWN 1495 | -10/Exiles | Met EX-HEX 1588 | -10/Exiles | Met EX-DEC 1597 | -10/Exiles | Learned location of Zion (-6) 1985 | -10/Exiles | Met EX-BIN 2010 | -10/Exiles | Aligned with FarCom system 2012 | -10/Exiles | Given EX-Vault access code 2053 | -10/Exiles | Opened EX-Vault 2066 | -10/Exiles | Found AWS/Thermal 2070 | -10/Exiles | Found Supersonic Drone Bay 2111 | -10/Exiles | Warned to stay clear of 0b10 Research branches 2325 | -10/Exiles | Attacked by the Exiles 2493 | -10/Exiles | Destroyed 8R-AWN 2508 | -10/Exiles | Found Prototype Ballistic Gun 2508 | -10/Exiles | Identified 8R-AWN's Boregun 2517 | -10/Exiles | Lost 6 parts (2n3u1w) 2548 | -10/Exiles | Build established: Mutant 2735 | -10/Exiles | Destroyed EX-BIN 2741 | -10/Exiles | Destroyed EX-HEX 2848 | -10/Exiles | Destroyed EX-DEC 3028 | -10/Exiles | Found Prototype Processor 3237 | -10/Exiles | Found Prototype Device 3303 | -10/Exiles | Build established: Hauler-Mutant 3319 | -10/Exiles | DAS Turret deployed 3502 | -10/Exiles | Identified System Purifier 3627 | -10/Exiles | Discovered new exit (range 14) 3649 | -10/Exiles | Left Exiles lab with AWS/Thermal 3649 | -10/Exiles | Entered Mines 3669 | -9/Mines | Core integrity fell below 50% 3681 | -9/Mines | Met a Derelict bent on vengeance 3824 | -9/Mines | Discovered new exit (range 8) 4188 | -9/Mines | Assembled infested the area 4273 | -9/Mines | Entered Materials 4273 | -8/Materials | Evolved 4 slots: Propulsion x1, Utility x3 4274 | -8/Materials | Loaded intel: 12 terminal locations 4404 | -8/Materials | Repaired Exp. Heat Sink? 4696 | -8/Materials | Garrison activated, responded to threat 4926 | -8/Materials | Destroyed 7 combat bots 4931 | -8/Materials | Self-destructed Last Messages --------------- 04903_ U-05 Engineer lays Concrete. 04904_ Missile Launcher destroyed. 04904_ U-05 Engineer lays Concrete. 04904_ K-01 Serf collects debris. 04905_ G-47 Trooper destroyed. 04906_ Lgt. Treads destroyed. 04907_ The unstable cave ceiling collapses. 04907_ Dropped Assault Rifle. 04908_ K-01 Serf collects debris. 04911_ R-06 Scavenger collects Aluminum Leg. 04912_ K-01 Serf collects debris. 04912_ U-05 Engineer lays Concrete. 04913_ The unstable cave ceiling collapses. 04913_ Imp. Ion Engine crushed. 04915_ K-01 Serf collects debris. 04917_ R-06 Scavenger collects Lgt. Treads. 04919_ The unstable cave ceiling collapses. 04919_ K-01 Serf collects debris. 04931_ Adv. Core Analyzer destroyed. 04931_ System corrupted by crushing effect (+4). Map ----- +----------------------------------------------------+ | ???# # #????+####???????????????????? | | ???# """ # #???? ????????????????????? | | ???# """ # ###? """ #???????????????????? | | ???#= """ # #? """ #???????????????????? | | ???# + # """ #???????????????????? | | ???# """ # # #???????????????????? | | ???# """ # + ! #???????????????????? | | ???# """ !# ##################?????????? | | ???# # #??????# * #?????????? | | ????######### ######## +?????????? | | ????####????# # """ # #?????????? | | ????# //??# # """ # # #?????? | | ????# /]! # # """ + # #?????? | | ????# ! /]! / !+ # # #?????? | | ????# # =# #? # #?????? | | ????# ??# # ] #? # #?????? | | ?############ ########?# # +?????? | | ?# ]]] # #???????## #?????? | | ?## ]] # #???????# # #?????? | | ??# ]] # #??######## #?????? | | ??# + #??#!!!!!!# #?????? | | ??# """ # ##?#![!! ! k #?????? | | ??# "T" """ # %##?# [! ##????? | | ??# """ """ # #;## ## # ##???? | | ??# # = # ##??? | | ??########### @b ! [ ! # ??? | | ????????????# g k # #### | | ????????????####;### "" # #[ | | ??????T???????# ## "T # %"" | | ??????????????# ## "" %[%*=G" | | ??????????????# ## "" ==="" | | ??????????????# ## # # !% | | ??????????????# ## # % ! | | ??????????????# ## #?# ##### | | ??????????????# / ## #?# ##??? | | ??????????????###### #?# # #??? | | ???????????????????# """ #?# # #? | | ???????????????????# """ ## # #? | | ???????????????????? "?" ### % # | | ???????????????????? ? #?# = | | ???????????????????? ?? ??# % | | ???????????????????????????#+#??## # | | ????????????????????????????????? # # | | ?????????????????????????????????!##### ## | | ?????????????T??????????????????? ????# #? | | ????????????????????????????????||????? #? | | ????????????????????????????????||????? +? | | ????????????????????????????????| ?????? #? | | ???????????????????????????????? ??????? #? | | ???????????????????????????????? ??????????? | +----------------------------------------------------+ Best States ------------- Heat Dissipation 57 Energy Generation 19 Energy Capacity 310 Matter Stores 300 Matter Capacity 300 Sight Range 16 Terrain Scan Density 10 Armor Coverage 600 Core Shielding 20 Evasion (%) 40 Core Analysis 10 Recoil Reduction 3 Item Schematics ----------------- None Robot Schematics ------------------ None Fabricated ------------ Nothing Alien Tech Used ----------------- None Achievements -------------- None Challenges ------------ None Game ------ Seed ReflectiveCoolingMachine Manual? 0 Play Time 00:26:53 Cumulative 305.0 hours Start 2021.02.11 @ 09:53:51 End 2021.02.11 @ 10:15:17 Sessions 1 Manual Loads 0 Difficulty Rogue Special Mode None Game No. 254 Rogue 247 Adventurer 0 Explorer 7 Win Type - Total 10 Types 3/1/6/0/0/0/0/0/0 Lore% 75 Gallery% 92 Achievement% 73 Wizard Run 0 Options --------- ASCII 0 Keyboard 0 Movement Numpad Keybinds 0 Fullscreen 1 Font 18/X11Bold Map View 76x50 Tactical HUD 1 Map Filters NONE Filters NONE Steam 1 RUN: 2c152369-1b98-4edc-a022-655e0051d409